Workbook

Sheet READ THIS - INSTRUCTIONS
A1: BILL STARR 5x5
E2: A Base Version for Novice to Intermediate Lifters
E3: Linear Pre-Periodization
A4: Table of Contents on DIY Strength Training Website | F4: DIY Strength Training Version of MadCow Beta 0.4
D5: www.DIYStrengthTraining.com
A11: Click Here to watch my video instructions <<<<
A12: >>>> Click Here to be notified when/if I updated this spreadsheet
A13: Introduction:
A15: Link to Program Description
A17: This program is a template designed to match the program description linked above.
A18: It is not intended as a stand-alone, this is all just some raw estimation that would give a general trainee
A19: with a few years of experience a look at how the weights might be arranged. In reality he will
A20: be estimating and resestimating as he runs through the program to peak everything at the right time.
A21: Obviously, given that this is all very general, someone who does this program even once will be able to set
A22: themseleves up much better in the future using even very limited experience, their brain, and a pencil rather
A23: than hoping all the assumptions I made here actually work for them. Hopefully that's clear.
A25: I will also note that this is not a 9 week program, you continue making increases for as long as you are
A26: able to. If you read the Program Description, you already know that. I only included 9 weeks to make this simple
A27: and compact. It's meant to sketch out the program and clarify the progression and is not meant
A28: as a substitute for 5 minutes of reading. If you are investing yourself in this program over a series of weeks and
A29: care about your progress, it likely makes sense to read the damn description and make sure you have it right.
A31: Instructions:
A33: Only change yellow cells. Do not alter the Tonnage Calc worksheet.
A35: Test Weight and Reps Achieved is to help you calculate your single rep max and 5 rep max.
A36: These estimats are more accurate with lower rep tests and lifters who train using lower reps
A37: i.e. testing with a set of 12 and a lifter who is typically used to 10-15 reps is going to decrease accuracy.
A39: Set Interval is the percent change between sets based on the top set of the day for a given exercise.
A40: The lower this value the less space between sets (i.e. higher workload and more density) the greater
A41: the possibility of fatiguing too soon and limiting progress (i.e. fewer weeks of progression or too weak for high performance on top sets)
A43: Tonnage is calculated based on core lifts, it is the combined sum of volume and intensity (%1RM). Basically a proxy for workload.
A44: i.e. Weight Used X Reps = Tonnage. The cutoff is to make the calculation more relevant and not count light sets
A45: towards the total since the impact from very light work is not going to be significant (this is common in practice)
A47: Obviously most people will need to round the weights. If you want to train by percents and be more precise with weight
A48: selection than 5lbs incriments (i.e. two 2.5lbs plates), maybe look into microplates or even this really innovative/inexpensive
A49: microchain solution. Unfortunately, this is more a problem for weaker/newer lifters as a given % of a small lift is inherently smaller.
A50: Microloading and Fractional Plates | D50: DIY Strength Microloading Technique

Sheet Weeks 1-9 (Single Factor)
A1: www.DIYStrengthTraining.com
B2: Test Weight | C2: Reps (<12) | D2: 1RM | E2: 5RM
A3: Squat | B3: 315 | C3: 5 | D3: =(B3)/(1.0278-(0.0278*C3)) -> 354 | E3: =D3*(1.0278-(0.0278*5)) -> 315 | G3: Set Interval | I3: 12.5% | J3: Usually 10-15%
A4: Bench | B4: 225 | C4: 5 | D4: =(B4)/(1.0278-(0.0278*C4)) -> 253 | E4: =D4*(1.0278-(0.0278*5)) -> 225 | J4: Given % of Single Rep Max for Inclusion in Relevant Tonnage
A5: Row | B5: 205 | C5: 5 | D5: =(B5)/(1.0278-(0.0278*C5)) -> 231 | E5: =D5*(1.0278-(0.0278*5)) -> 205 | G5: Tonnage Cutoff | I5: 60%
A6: Dead | B6: 315 | C6: 5 | D6: =(B6)/(1.0278-(0.0278*C6)) -> 354 | E6: =D6*(1.0278-(0.0278*5)) -> 315
A7: Incline | B7: 185 | C7: 5 | D7: =(B7)/(1.0278-(0.0278*C7)) -> 208 | E7: =D7*(1.0278-(0.0278*5)) -> 185
A9: Day | B9: Exercise | C9: Reps | D9: Wk 1 | F9: Wk 2 | H9: Wk 3 | J9: Wk 4 | L9: Wk 5 | N9: Wk 6 | P9: Wk 7 | R9: Wk 8 | T9: Wk 9
A10: Monday | B10: Squat | C10: 5 | D10: =D$14*(1-4*$I$3) -> 146 | F10: =F$14*(1-4*$I$3) -> 150 | H10: =H$14*(1-4*$I$3) -> 154 | J10: =J$14*(1-4*$I$3) -> 158 | L10: =L$14*(1-4*'Weeks 1-9 (Single Factor)'!$I$3) -> 161 | N10: =N$14*(1-4*'Weeks 1-9 (Single Factor)'!$I$3) -> 165 | P10: =P$14*(1-4*'Weeks 1-9 (Single Factor)'!$I$3) -> 170 | R10: =R$14*(1-4*'Weeks 1-9 (Single Factor)'!$I$3) -> 174 | T10: =T$14*(1-4*'Weeks 1-9 (Single Factor)'!$I$3) -> 178
C11: 5 | D11: =D$14*(1-3*$I$3) -> 182 | F11: =F$14*(1-3*$I$3) -> 187 | H11: =H$14*(1-3*$I$3) -> 192 | J11: =J$14*(1-3*$I$3) -> 197 | L11: =L$14*(1-3*'Weeks 1-9 (Single Factor)'!$I$3) -> 202 | N11: =N$14*(1-3*'Weeks 1-9 (Single Factor)'!$I$3) -> 207 | P11: =P$14*(1-3*'Weeks 1-9 (Single Factor)'!$I$3) -> 212 | R11: =R$14*(1-3*'Weeks 1-9 (Single Factor)'!$I$3) -> 217 | T11: =T$14*(1-3*'Weeks 1-9 (Single Factor)'!$I$3) -> 223
C12: 5 | D12: =D$14*(1-2*$I$3) -> 219 | F12: =F$14*(1-2*$I$3) -> 225 | H12: =H$14*(1-2*$I$3) -> 230 | J12: =J$14*(1-2*$I$3) -> 236 | L12: =L$14*(1-2*'Weeks 1-9 (Single Factor)'!$I$3) -> 242 | N12: =N$14*(1-2*'Weeks 1-9 (Single Factor)'!$I$3) -> 248 | P12: =P$14*(1-2*'Weeks 1-9 (Single Factor)'!$I$3) -> 254 | R12: =R$14*(1-2*'Weeks 1-9 (Single Factor)'!$I$3) -> 261 | T12: =T$14*(1-2*'Weeks 1-9 (Single Factor)'!$I$3) -> 267
C13: 5 | D13: =D$14*(1-$I$3) -> 255 | F13: =F$14*(1-$I$3) -> 262 | H13: =H$14*(1-$I$3) -> 269 | J13: =J$14*(1-$I$3) -> 276 | L13: =L$14*(1-'Weeks 1-9 (Single Factor)'!$I$3) -> 283 | N13: =N$14*(1-'Weeks 1-9 (Single Factor)'!$I$3) -> 290 | P13: =P$14*(1-'Weeks 1-9 (Single Factor)'!$I$3) -> 297 | R13: =R$14*(1-'Weeks 1-9 (Single Factor)'!$I$3) -> 304 | T13: =T$14*(1-'Weeks 1-9 (Single Factor)'!$I$3) -> 312
C14: 5 | D14: =F14*0.975 -> 292 | F14: =H14*0.975 -> 299 | H14: =J14*0.975 -> 307 | J14: =E3 -> 315 | L14: ='Weeks 1-9 (Single Factor)'!J14*1.025 -> 323 | N14: =L14*1.025 -> 331 | P14: =N14*1.025 -> 339 | R14: =P14*1.025 -> 348 | T14: =R14*1.025 -> 356
B15: Bench | C15: 5 | D15: =D$19*(1-4*$I$3) -> 104 | F15: =F$19*(1-4*$I$3) -> 107 | H15: =H$19*(1-4*$I$3) -> 110 | J15: =J$19*(1-4*$I$3) -> 113 | L15: =L$19*(1-4*'Weeks 1-9 (Single Factor)'!$I$3) -> 115 | N15: =N$19*(1-4*'Weeks 1-9 (Single Factor)'!$I$3) -> 118 | P15: =P$19*(1-4*'Weeks 1-9 (Single Factor)'!$I$3) -> 121 | R15: =R$19*(1-4*'Weeks 1-9 (Single Factor)'!$I$3) -> 124 | T15: =T$19*(1-4*'Weeks 1-9 (Single Factor)'!$I$3) -> 127
C16: 5 | D16: =D$19*(1-3*$I$3) -> 130 | F16: =F$19*(1-3*$I$3) -> 134 | H16: =H$19*(1-3*$I$3) -> 137 | J16: =J$19*(1-3*$I$3) -> 141 | L16: =L$19*(1-3*'Weeks 1-9 (Single Factor)'!$I$3) -> 144 | N16: =N$19*(1-3*'Weeks 1-9 (Single Factor)'!$I$3) -> 148 | P16: =P$19*(1-3*'Weeks 1-9 (Single Factor)'!$I$3) -> 151 | R16: =R$19*(1-3*'Weeks 1-9 (Single Factor)'!$I$3) -> 155 | T16: =T$19*(1-3*'Weeks 1-9 (Single Factor)'!$I$3) -> 159
C17: 5 | D17: =D$19*(1-2*$I$3) -> 156 | F17: =F$19*(1-2*$I$3) -> 160 | H17: =H$19*(1-2*$I$3) -> 165 | J17: =J$19*(1-2*$I$3) -> 169 | L17: =L$19*(1-2*'Weeks 1-9 (Single Factor)'!$I$3) -> 173 | N17: =N$19*(1-2*'Weeks 1-9 (Single Factor)'!$I$3) -> 177 | P17: =P$19*(1-2*'Weeks 1-9 (Single Factor)'!$I$3) -> 182 | R17: =R$19*(1-2*'Weeks 1-9 (Single Factor)'!$I$3) -> 186 | T17: =T$19*(1-2*'Weeks 1-9 (Single Factor)'!$I$3) -> 191
C18: 5 | D18: =D$19*(1-$I$3) -> 182 | F18: =F$19*(1-$I$3) -> 187 | H18: =H$19*(1-$I$3) -> 192 | J18: =J$19*(1-$I$3) -> 197 | L18: =L$19*(1-'Weeks 1-9 (Single Factor)'!$I$3) -> 202 | N18: =N$19*(1-'Weeks 1-9 (Single Factor)'!$I$3) -> 207 | P18: =P$19*(1-'Weeks 1-9 (Single Factor)'!$I$3) -> 212 | R18: =R$19*(1-'Weeks 1-9 (Single Factor)'!$I$3) -> 217 | T18: =T$19*(1-'Weeks 1-9 (Single Factor)'!$I$3) -> 223
C19: 5 | D19: =F19*0.975 -> 209 | F19: =H19*0.975 -> 214 | H19: =J19*0.975 -> 219 | J19: =E4 -> 225 | L19: ='Weeks 1-9 (Single Factor)'!J19*1.025 -> 231 | N19: =L19*1.025 -> 236 | P19: =N19*1.025 -> 242 | R19: =P19*1.025 -> 248 | T19: =R19*1.025 -> 255
B20: Bent Rows | C20: 5 | D20: =D$24*(1-4*$I$3) -> 95 | F20: =F$24*(1-4*$I$3) -> 97 | H20: =H$24*(1-4*$I$3) -> 100 | J20: =J$24*(1-4*$I$3) -> 103 | L20: =L$24*(1-4*'Weeks 1-9 (Single Factor)'!$I$3) -> 105 | N20: =N$24*(1-4*'Weeks 1-9 (Single Factor)'!$I$3) -> 108 | P20: =P$24*(1-4*'Weeks 1-9 (Single Factor)'!$I$3) -> 110 | R20: =R$24*(1-4*'Weeks 1-9 (Single Factor)'!$I$3) -> 113 | T20: =T$24*(1-4*'Weeks 1-9 (Single Factor)'!$I$3) -> 116
C21: 5 | D21: =D$24*(1-3*$I$3) -> 119 | F21: =F$24*(1-3*$I$3) -> 122 | H21: =H$24*(1-3*$I$3) -> 125 | J21: =J$24*(1-3*$I$3) -> 128 | L21: =L$24*(1-3*'Weeks 1-9 (Single Factor)'!$I$3) -> 131 | N21: =N$24*(1-3*'Weeks 1-9 (Single Factor)'!$I$3) -> 135 | P21: =P$24*(1-3*'Weeks 1-9 (Single Factor)'!$I$3) -> 138 | R21: =R$24*(1-3*'Weeks 1-9 (Single Factor)'!$I$3) -> 141 | T21: =T$24*(1-3*'Weeks 1-9 (Single Factor)'!$I$3) -> 145
C22: 5 | D22: =D$24*(1-2*$I$3) -> 143 | F22: =F$24*(1-2*$I$3) -> 146 | H22: =H$24*(1-2*$I$3) -> 150 | J22: =J$24*(1-2*$I$3) -> 154 | L22: =L$24*(1-2*'Weeks 1-9 (Single Factor)'!$I$3) -> 158 | N22: =N$24*(1-2*'Weeks 1-9 (Single Factor)'!$I$3) -> 162 | P22: =P$24*(1-2*'Weeks 1-9 (Single Factor)'!$I$3) -> 166 | R22: =R$24*(1-2*'Weeks 1-9 (Single Factor)'!$I$3) -> 170 | T22: =T$24*(1-2*'Weeks 1-9 (Single Factor)'!$I$3) -> 174
C23: 5 | D23: =D$24*(1-$I$3) -> 166 | F23: =F$24*(1-$I$3) -> 171 | H23: =H$24*(1-$I$3) -> 175 | J23: =J$24*(1-$I$3) -> 179 | L23: =L$24*(1-'Weeks 1-9 (Single Factor)'!$I$3) -> 184 | N23: =N$24*(1-'Weeks 1-9 (Single Factor)'!$I$3) -> 188 | P23: =P$24*(1-'Weeks 1-9 (Single Factor)'!$I$3) -> 193 | R23: =R$24*(1-'Weeks 1-9 (Single Factor)'!$I$3) -> 198 | T23: =T$24*(1-'Weeks 1-9 (Single Factor)'!$I$3) -> 203
C24: 5 | D24: =F24*0.975 -> 190 | F24: =H24*0.975 -> 195 | H24: =J24*0.975 -> 200 | J24: =E5 -> 205 | L24: ='Weeks 1-9 (Single Factor)'!J24*1.025 -> 210 | N24: =L24*1.025 -> 215 | P24: =N24*1.025 -> 221 | R24: =P24*1.025 -> 226 | T24: =R24*1.025 -> 232
B25: Assistance | C25: 3x8
C26: 3x8
A28: Wednesday | B28: Squat | C28: 5 | D28: =D10 -> 146 | F28: 150 | H28: 154 | J28: 158 | L28: =L10 -> 161 | N28: =N10 -> 165 | P28: =P10 -> 170 | R28: =R10 -> 174 | T28: =T10 -> 178
C29: 5 | D29: 182 | F29: 187 | H29: 192 | J29: 197 | L29: =L11 -> 202 | N29: =N11 -> 207 | P29: =P11 -> 212 | R29: =R11 -> 217 | T29: =T11 -> 223
C30: 5 | D30: 219 | F30: 225 | H30: 230 | J30: 236 | L30: =L12 -> 242 | N30: =N12 -> 248 | P30: =P12 -> 254 | R30: =R12 -> 261 | T30: =T12 -> 267
C31: 5 | D31: =D30 -> 219 | F31: =F30 -> 225 | H31: =H30 -> 230 | J31: =J30 -> 236 | L31: =L30 -> 242 | N31: =N30 -> 248 | P31: =P30 -> 254 | R31: =R30 -> 261 | T31: =T30 -> 267
B32: Incline Bench | C32: 5 | D32: =D$35*(1-3*$I$3) -> 107 | F32: =F$35*(1-3*$I$3) -> 110 | H32: =H$35*(1-3*$I$3) -> 113 | J32: =J$35*(1-3*$I$3) -> 116 | L32: =L$35*(1-3*'Weeks 1-9 (Single Factor)'!$I$3) -> 119 | N32: =N$35*(1-3*'Weeks 1-9 (Single Factor)'!$I$3) -> 121 | P32: =P$35*(1-3*'Weeks 1-9 (Single Factor)'!$I$3) -> 125 | R32: =R$35*(1-3*'Weeks 1-9 (Single Factor)'!$I$3) -> 128 | T32: =T$35*(1-3*'Weeks 1-9 (Single Factor)'!$I$3) -> 131
C33: 5 | D33: =D$35*(1-2*$I$3) -> 129 | F33: =F$35*(1-2*$I$3) -> 132 | H33: =H$35*(1-2*$I$3) -> 135 | J33: =J$35*(1-2*$I$3) -> 139 | L33: =L$35*(1-2*'Weeks 1-9 (Single Factor)'!$I$3) -> 142 | N33: =N$35*(1-2*'Weeks 1-9 (Single Factor)'!$I$3) -> 146 | P33: =P$35*(1-2*'Weeks 1-9 (Single Factor)'!$I$3) -> 149 | R33: =R$35*(1-2*'Weeks 1-9 (Single Factor)'!$I$3) -> 153 | T33: =T$35*(1-2*'Weeks 1-9 (Single Factor)'!$I$3) -> 157
C34: 5 | D34: =D$35*(1-$I$3) -> 150 | F34: =F$35*(1-$I$3) -> 154 | H34: =H$35*(1-$I$3) -> 158 | J34: =J$35*(1-$I$3) -> 162 | L34: =L$35*(1-'Weeks 1-9 (Single Factor)'!$I$3) -> 166 | N34: =N$35*(1-'Weeks 1-9 (Single Factor)'!$I$3) -> 170 | P34: =P$35*(1-'Weeks 1-9 (Single Factor)'!$I$3) -> 174 | R34: =R$35*(1-'Weeks 1-9 (Single Factor)'!$I$3) -> 179 | T34: =T$35*(1-'Weeks 1-9 (Single Factor)'!$I$3) -> 183
C35: 5 | D35: =F35*0.975 -> 171 | F35: =H35*0.975 -> 176 | H35: =J35*0.975 -> 180 | J35: =E7 -> 185 | L35: ='Weeks 1-9 (Single Factor)'!J35*1.025 -> 190 | N35: =L35*1.025 -> 194 | P35: =N35*1.025 -> 199 | R35: =P35*1.025 -> 204 | T35: =R35*1.025 -> 209
B36: Deadlift | C36: 5 | D36: =D$39*(1-3*$I$3) -> 182 | F36: =F$39*(1-3*$I$3) -> 187 | H36: =H$39*(1-3*$I$3) -> 192 | J36: =J$39*(1-3*$I$3) -> 197 | L36: =L$39*(1-3*'Weeks 1-9 (Single Factor)'!$I$3) -> 202 | N36: =N$39*(1-3*'Weeks 1-9 (Single Factor)'!$I$3) -> 207 | P36: =P$39*(1-3*'Weeks 1-9 (Single Factor)'!$I$3) -> 212 | R36: =R$39*(1-3*'Weeks 1-9 (Single Factor)'!$I$3) -> 217 | T36: =T$39*(1-3*'Weeks 1-9 (Single Factor)'!$I$3) -> 223
C37: 5 | D37: =D$39*(1-2*$I$3) -> 219 | F37: =F$39*(1-2*$I$3) -> 225 | H37: =H$39*(1-2*$I$3) -> 230 | J37: =J$39*(1-2*$I$3) -> 236 | L37: =L$39*(1-2*'Weeks 1-9 (Single Factor)'!$I$3) -> 242 | N37: =N$39*(1-2*'Weeks 1-9 (Single Factor)'!$I$3) -> 248 | P37: =P$39*(1-2*'Weeks 1-9 (Single Factor)'!$I$3) -> 254 | R37: =R$39*(1-2*'Weeks 1-9 (Single Factor)'!$I$3) -> 261 | T37: =T$39*(1-2*'Weeks 1-9 (Single Factor)'!$I$3) -> 267
C38: 5 | D38: =D$39*(1-$I$3) -> 255 | F38: =F$39*(1-$I$3) -> 262 | H38: =H$39*(1-$I$3) -> 269 | J38: =J$39*(1-$I$3) -> 276 | L38: =L$39*(1-'Weeks 1-9 (Single Factor)'!$I$3) -> 283 | N38: =N$39*(1-'Weeks 1-9 (Single Factor)'!$I$3) -> 290 | P38: =P$39*(1-'Weeks 1-9 (Single Factor)'!$I$3) -> 297 | R38: =R$39*(1-'Weeks 1-9 (Single Factor)'!$I$3) -> 304 | T38: =T$39*(1-'Weeks 1-9 (Single Factor)'!$I$3) -> 312
C39: 5 | D39: =F39*0.975 -> 292 | F39: =H39*0.975 -> 299 | H39: =J39*0.975 -> 307 | J39: =E6 -> 315 | L39: ='Weeks 1-9 (Single Factor)'!J39*1.025 -> 323 | N39: =L39*1.025 -> 331 | P39: =N39*1.025 -> 339 | R39: =P39*1.025 -> 348 | T39: =R39*1.025 -> 356
C40: 3x8
C41: 3x8
A43: Friday | B43: Squat | C43: 5 | D43: =D10 -> 146 | F43: 150 | H43: 154 | J43: 158 | L43: =L10 -> 161 | N43: =N10 -> 165 | P43: =P10 -> 170 | R43: =R10 -> 174 | T43: =T10 -> 178
C44: 5 | D44: 182 | F44: 187 | H44: 192 | J44: 197 | L44: =L11 -> 202 | N44: =N11 -> 207 | P44: =P11 -> 212 | R44: =R11 -> 217 | T44: =T11 -> 223
C45: 5 | D45: 219 | F45: 225 | H45: 230 | J45: 236 | L45: =L12 -> 242 | N45: =N12 -> 248 | P45: =P12 -> 254 | R45: =R12 -> 261 | T45: =T12 -> 267
C46: 5 | D46: 255 | F46: 262 | H46: 269 | J46: 276 | L46: =L13 -> 283 | N46: =N13 -> 290 | P46: =P13 -> 297 | R46: =R13 -> 304 | T46: =T13 -> 312
C47: 3 | D47: =D14*1.025 -> 299 | F47: =F14*1.025 -> 307 | H47: =H14*1.025 -> 315 | J47: =J14*1.025 -> 323 | L47: =L14*1.025 -> 331 | N47: =N14*1.025 -> 339 | P47: =P14*1.025 -> 348 | R47: =R14*1.025 -> 356 | T47: =T14*1.025 -> 365
C48: 8 | D48: =D45 -> 219 | F48: =F45 -> 225 | H48: =H45 -> 230 | J48: =J45 -> 236 | L48: =L45 -> 242 | N48: =N45 -> 248 | P48: =P45 -> 254 | R48: =R45 -> 261 | T48: =T45 -> 267
B49: Bench | C49: 5 | D49: =D15 -> 104 | F49: 107 | H49: 110 | J49: 113 | L49: =L15 -> 115 | N49: =N15 -> 118 | P49: =P15 -> 121 | R49: =R15 -> 124 | T49: =T15 -> 127
C50: 5 | D50: 130 | F50: 134 | H50: 137 | J50: 141 | L50: =L16 -> 144 | N50: =N16 -> 148 | P50: =P16 -> 151 | R50: =R16 -> 155 | T50: =T16 -> 159
C51: 5 | D51: 156 | F51: 160 | H51: 165 | J51: 169 | L51: =L17 -> 173 | N51: =N17 -> 177 | P51: =P17 -> 182 | R51: =R17 -> 186 | T51: =T17 -> 191
C52: 5 | D52: 182 | F52: 187 | H52: 192 | J52: 197 | L52: =L18 -> 202 | N52: =N18 -> 207 | P52: =P18 -> 212 | R52: =R18 -> 217 | T52: =T18 -> 223
C53: 3 | D53: =D19*1.025 -> 214 | F53: =F19*1.025 -> 219 | H53: =H19*1.025 -> 225 | J53: =J19*1.025 -> 231 | L53: =L19*1.025 -> 236 | N53: =N19*1.025 -> 242 | P53: =P19*1.025 -> 248 | R53: =R19*1.025 -> 255 | T53: =T19*1.025 -> 261
C54: 8 | D54: =D51 -> 156 | F54: =F51 -> 160 | H54: =H51 -> 165 | J54: =J51 -> 169 | L54: =L51 -> 173 | N54: =N51 -> 177 | P54: =P51 -> 182 | R54: =R51 -> 186 | T54: =T51 -> 191
B55: Bent Rows | C55: 5 | D55: =D20 -> 95 | F55: 97 | H55: 100 | J55: 103 | L55: =L20 -> 105 | N55: =N20 -> 108 | P55: =P20 -> 110 | R55: =R20 -> 113 | T55: =T20 -> 116
C56: 5 | D56: 119 | F56: 122 | H56: 125 | J56: 128 | L56: =L21 -> 131 | N56: =N21 -> 135 | P56: =P21 -> 138 | R56: =R21 -> 141 | T56: =T21 -> 145
C57: 5 | D57: 143 | F57: 146 | H57: 150 | J57: 154 | L57: =L22 -> 158 | N57: =N22 -> 162 | P57: =P22 -> 166 | R57: =R22 -> 170 | T57: =T22 -> 174
C58: 5 | D58: 166 | F58: 171 | H58: 175 | J58: 179 | L58: =L23 -> 184 | N58: =N23 -> 188 | P58: =P23 -> 193 | R58: =R23 -> 198 | T58: =T23 -> 203
C59: 3 | D59: =D24*1.025 -> 195 | F59: =F24*1.025 -> 200 | H59: =H24*1.025 -> 205 | J59: =J24*1.025 -> 210 | L59: =L24*1.025 -> 215 | N59: =N24*1.025 -> 221 | P59: =P24*1.025 -> 226 | R59: =R24*1.025 -> 232 | T59: =T24*1.025 -> 238
C60: 8 | D60: =D57 -> 143 | F60: =F57 -> 146 | H60: =H57 -> 150 | J60: =J57 -> 154 | L60: =L57 -> 158 | N60: =N57 -> 162 | P60: =P57 -> 166 | R60: =R57 -> 170 | T60: =T57 -> 174
C61: 3x8
C62: 3x8
A64: Tonnage: | D64: Wk 1 | F64: Wk 2 | H64: Wk 3 | J64: Wk 4 | L64: Wk 5 | N64: Wk 6 | P64: Wk 7 | R64: Wk 8 | T64: Wk 9
A65: Core Exercise Tonnage | C65: Mon | D65: =SUMPRODUCT($C$10:$C$24,D10:D24) -> 12,947 | F65: =SUMPRODUCT($C$10:$C$24,F10:F24) -> 13,279 | H65: =SUMPRODUCT($C$10:$C$24,H10:H24) -> 13,620 | J65: =SUMPRODUCT($C$10:$C$24,J10:J24) -> 13,969 | L65: =SUMPRODUCT('Weeks 1-9 (Single Factor)'!$C$10:$C$24,'Weeks 1-9 (Single Factor)'!L10:L24) -> 14,318 | N65: =SUMPRODUCT('Weeks 1-9 (Single Factor)'!$C$10:$C$24,'Weeks 1-9 (Single Factor)'!N10:N24) -> 14,676 | P65: =SUMPRODUCT('Weeks 1-9 (Single Factor)'!$C$10:$C$24,'Weeks 1-9 (Single Factor)'!P10:P24) -> 15,043 | R65: =SUMPRODUCT('Weeks 1-9 (Single Factor)'!$C$10:$C$24,'Weeks 1-9 (Single Factor)'!R10:R24) -> 15,419 | T65: =SUMPRODUCT('Weeks 1-9 (Single Factor)'!$C$10:$C$24,'Weeks 1-9 (Single Factor)'!T10:T24) -> 15,804
C66: Wed | D66: =SUMPRODUCT($C$28:$C$39,D28:D39) -> 11,363 | F66: =SUMPRODUCT($C$28:$C$39,F28:F39) -> 11,654 | H66: =SUMPRODUCT($C$28:$C$39,H28:H39) -> 11,953 | J66: =SUMPRODUCT($C$28:$C$39,J28:J39) -> 12,259 | L66: =SUMPRODUCT('Weeks 1-9 (Single Factor)'!$C$28:$C$39,'Weeks 1-9 (Single Factor)'!L28:L39) -> 12,566 | N66: =SUMPRODUCT('Weeks 1-9 (Single Factor)'!$C$28:$C$39,'Weeks 1-9 (Single Factor)'!N28:N39) -> 12,880 | P66: =SUMPRODUCT('Weeks 1-9 (Single Factor)'!$C$28:$C$39,'Weeks 1-9 (Single Factor)'!P28:P39) -> 13,202 | R66: =SUMPRODUCT('Weeks 1-9 (Single Factor)'!$C$28:$C$39,'Weeks 1-9 (Single Factor)'!R28:R39) -> 13,532 | T66: =SUMPRODUCT('Weeks 1-9 (Single Factor)'!$C$28:$C$39,'Weeks 1-9 (Single Factor)'!T28:T39) -> 13,870
C67: Fri | D67: =SUMPRODUCT($C$43:$C$60,D43:D60) -> 15,761 | F67: =SUMPRODUCT($C$43:$C$60,F43:F60) -> 16,165 | H67: =SUMPRODUCT($C$43:$C$60,H43:H60) -> 16,580 | J67: =SUMPRODUCT($C$43:$C$60,J43:J60) -> 17,005 | L67: =SUMPRODUCT('Weeks 1-9 (Single Factor)'!$C$43:$C$60,'Weeks 1-9 (Single Factor)'!L43:L60) -> 17,430 | N67: =SUMPRODUCT('Weeks 1-9 (Single Factor)'!$C$43:$C$60,'Weeks 1-9 (Single Factor)'!N43:N60) -> 17,865 | P67: =SUMPRODUCT('Weeks 1-9 (Single Factor)'!$C$43:$C$60,'Weeks 1-9 (Single Factor)'!P43:P60) -> 18,312 | R67: =SUMPRODUCT('Weeks 1-9 (Single Factor)'!$C$43:$C$60,'Weeks 1-9 (Single Factor)'!R43:R60) -> 18,770 | T67: =SUMPRODUCT('Weeks 1-9 (Single Factor)'!$C$43:$C$60,'Weeks 1-9 (Single Factor)'!T43:T60) -> 19,239
C68: Weekly | D68: =SUM(D65:D67) -> 40,071 | F68: =SUM(F65:F67) -> 41,098 | H68: =SUM(H65:H67) -> 42,152 | J68: =SUM(J65:J67) -> 43,233 | L68: =SUM(L65:L67) -> 44,314 | N68: =SUM(N65:N67) -> 45,421 | P68: =SUM(P65:P67) -> 46,557 | R68: =SUM(R65:R67) -> 47,721 | T68: =SUM(T65:T67) -> 48,914
A69: Tonnage w/Significance Cutoff | C69: Mon | D69: ='Tonnage Calc (do not change)'!D73 -> 9,063 | F69: ='Tonnage Calc (do not change)'!E73 -> 9,295 | H69: ='Tonnage Calc (do not change)'!F73 -> 9,534 | J69: ='Tonnage Calc (do not change)'!G73 -> 9,778 | L69: ='Tonnage Calc (do not change)'!H73 -> 10,023 | N69: ='Tonnage Calc (do not change)'!I73 -> 10,273 | P69: ='Tonnage Calc (do not change)'!J73 -> 10,530 | R69: ='Tonnage Calc (do not change)'!K73 -> 10,793 | T69: ='Tonnage Calc (do not change)'!L73 -> 11,063
C70: Wed | D70: ='Tonnage Calc (do not change)'!D74 -> 8,272 | F70: ='Tonnage Calc (do not change)'!E74 -> 8,484 | H70: ='Tonnage Calc (do not change)'!F74 -> 8,702 | J70: ='Tonnage Calc (do not change)'!G74 -> 8,925 | L70: ='Tonnage Calc (do not change)'!H74 -> 9,148 | N70: ='Tonnage Calc (do not change)'!I74 -> 9,377 | P70: ='Tonnage Calc (do not change)'!J74 -> 9,611 | R70: ='Tonnage Calc (do not change)'!K74 -> 9,852 | T70: ='Tonnage Calc (do not change)'!L74 -> 10,098
C71: Fri | D71: ='Tonnage Calc (do not change)'!D75 -> 11,877 | F71: ='Tonnage Calc (do not change)'!E75 -> 12,181 | H71: ='Tonnage Calc (do not change)'!F75 -> 12,494 | J71: ='Tonnage Calc (do not change)'!G75 -> 12,814 | L71: ='Tonnage Calc (do not change)'!H75 -> 13,134 | N71: ='Tonnage Calc (do not change)'!I75 -> 13,463 | P71: ='Tonnage Calc (do not change)'!J75 -> 13,799 | R71: ='Tonnage Calc (do not change)'!K75 -> 14,144 | T71: ='Tonnage Calc (do not change)'!L75 -> 14,498
C72: Weekly | D72: =SUM(D69:D71) -> 29,212 | F72: =SUM(F69:F71) -> 29,961 | H72: =SUM(H69:H71) -> 30,729 | J72: =SUM(J69:J71) -> 31,517 | L72: =SUM(L69:L71) -> 32,305 | N72: =SUM(N69:N71) -> 33,113 | P72: =SUM(P69:P71) -> 33,940 | R72: =SUM(R69:R71) -> 34,789 | T72: =SUM(T69:T71) -> 35,659

Sheet Tonnage Calc (do not change)
A1: NOTE: | B1: All this sheet does is calculate the tonnage incorporating the specified cutoff parameter on the first sheet (i.e. if <, then 0, otherwise X)
B2: Don't Change or Touch Anything
B4: ='Weeks 1-9 (Single Factor)'!B2 -> Test Weight | C4: ='Weeks 1-9 (Single Factor)'!C2 -> Reps (<12) | D4: ='Weeks 1-9 (Single Factor)'!D2 -> 1RM | E4: ='Weeks 1-9 (Single Factor)'!E2 -> 5RM
A5: ='Weeks 1-9 (Single Factor)'!A3 -> Squat | B5: ='Weeks 1-9 (Single Factor)'!B3 -> 315 | C5: ='Weeks 1-9 (Single Factor)'!C3 -> 5 | D5: ='Weeks 1-9 (Single Factor)'!D3 -> 354 | E5: ='Weeks 1-9 (Single Factor)'!E3 -> 315 | G5: Set Interval | H5: ='Weeks 1-9 (Single Factor)'!I3 -> 13% | I5: Generally 10-15%
A6: ='Weeks 1-9 (Single Factor)'!A4 -> Bench | B6: ='Weeks 1-9 (Single Factor)'!B4 -> 225 | C6: ='Weeks 1-9 (Single Factor)'!C4 -> 5 | D6: ='Weeks 1-9 (Single Factor)'!D4 -> 253 | E6: ='Weeks 1-9 (Single Factor)'!E4 -> 225 | G6: Tonnage Cutoff | H6: ='Weeks 1-9 (Single Factor)'!I5 -> 60% | I6: Given % of Single Rep Max for Inclusion in Relevant Tonnage
A7: ='Weeks 1-9 (Single Factor)'!A5 -> Row | B7: ='Weeks 1-9 (Single Factor)'!B5 -> 205 | C7: ='Weeks 1-9 (Single Factor)'!C5 -> 5 | D7: ='Weeks 1-9 (Single Factor)'!D5 -> 231 | E7: ='Weeks 1-9 (Single Factor)'!E5 -> 205
A8: ='Weeks 1-9 (Single Factor)'!A6 -> Dead | B8: ='Weeks 1-9 (Single Factor)'!B6 -> 315 | C8: ='Weeks 1-9 (Single Factor)'!C6 -> 5 | D8: ='Weeks 1-9 (Single Factor)'!D6 -> 354 | E8: ='Weeks 1-9 (Single Factor)'!E6 -> 315
A9: ='Weeks 1-9 (Single Factor)'!A7 -> Incline | B9: ='Weeks 1-9 (Single Factor)'!B7 -> 185 | C9: ='Weeks 1-9 (Single Factor)'!C7 -> 5 | D9: ='Weeks 1-9 (Single Factor)'!D7 -> 208 | E9: ='Weeks 1-9 (Single Factor)'!E7 -> 185
A11: Squat 1RM | C11: 1RM | D11: =$D$5 -> 354 | E11: =$D$5 -> 354 | F11: =$D$5 -> 354 | G11: =$D$5 -> 354 | H11: =(H23)/(1.0278-(0.0278*5)) -> 363 | I11: =(I23)/(1.0278-(0.0278*5)) -> 372 | J11: =(J23)/(1.0278-(0.0278*5)) -> 382 | K11: =(K23)/(1.0278-(0.0278*5)) -> 391 | L11: =(L23)/(1.0278-(0.0278*5)) -> 401
A12: Bench 1RM | C12: 1RM | D12: =$D$6 -> 253 | E12: =$D$6 -> 253 | F12: =$D$6 -> 253 | G12: =$D$6 -> 253 | H12: =(H28)/(1.0278-(0.0278*5)) -> 259 | I12: =(I28)/(1.0278-(0.0278*5)) -> 266 | J12: =(J28)/(1.0278-(0.0278*5)) -> 273 | K12: =(K28)/(1.0278-(0.0278*5)) -> 279 | L12: =(L28)/(1.0278-(0.0278*5)) -> 286
A13: Row 1RM | C13: 1RM | D13: =$D$7 -> 231 | E13: =$D$7 -> 231 | F13: =$D$7 -> 231 | G13: =$D$7 -> 231 | H13: =(H33)/(1.0278-(0.0278*5)) -> 236 | I13: =(I33)/(1.0278-(0.0278*5)) -> 242 | J13: =(J33)/(1.0278-(0.0278*5)) -> 248 | K13: =(K33)/(1.0278-(0.0278*5)) -> 255 | L13: =(L33)/(1.0278-(0.0278*5)) -> 261
A14: Incline 1RM | C14: 1RM | D14: =$D$9 -> 208 | E14: =$D$9 -> 208 | F14: =$D$9 -> 208 | G14: =$D$9 -> 208 | H14: =(H43)/(1.0278-(0.0278*5)) -> 213 | I14: =(I43)/(1.0278-(0.0278*5)) -> 219 | J14: =(J43)/(1.0278-(0.0278*5)) -> 224 | K14: =(K43)/(1.0278-(0.0278*5)) -> 230 | L14: =(L43)/(1.0278-(0.0278*5)) -> 235
A15: Deadlift 1RM | C15: 1RM | D15: =$D$8 -> 354 | E15: =$D$8 -> 354 | F15: =$D$8 -> 354 | G15: =$D$8 -> 354 | H15: =(H47)/(1.0278-(0.0278*5)) -> 363 | I15: =(I47)/(1.0278-(0.0278*5)) -> 372 | J15: =(J47)/(1.0278-(0.0278*5)) -> 382 | K15: =(K47)/(1.0278-(0.0278*5)) -> 391 | L15: =(L47)/(1.0278-(0.0278*5)) -> 401
A18: ='Weeks 1-9 (Single Factor)'!A9 -> Day | B18: ='Weeks 1-9 (Single Factor)'!B9 -> Exercise | C18: ='Weeks 1-9 (Single Factor)'!C9 -> Reps | D18: ='Weeks 1-9 (Single Factor)'!D9 -> Wk 1 | E18: ='Weeks 1-9 (Single Factor)'!F9 -> Wk 2 | F18: ='Weeks 1-9 (Single Factor)'!H9 -> Wk 3 | G18: ='Weeks 1-9 (Single Factor)'!J9 -> Wk 4 | H18: ='Weeks 1-9 (Single Factor)'!L9 -> Wk 5 | I18: ='Weeks 1-9 (Single Factor)'!N9 -> Wk 6 | J18: ='Weeks 1-9 (Single Factor)'!P9 -> Wk 7 | K18: ='Weeks 1-9 (Single Factor)'!R9 -> Wk 8 | L18: ='Weeks 1-9 (Single Factor)'!T9 -> Wk 9 | N18: Wk 1 | O18: Wk 2 | P18: Wk 3 | Q18: Wk 4 | R18: Wk 5 | S18: Wk 6 | T18: Wk 7 | U18: Wk 8 | V18: Wk 9
A19: ='Weeks 1-9 (Single Factor)'!A10 -> Monday | B19: ='Weeks 1-9 (Single Factor)'!B10 -> Squat | C19: ='Weeks 1-9 (Single Factor)'!C10 -> 5 | D19: ='Weeks 1-9 (Single Factor)'!D10 -> 146 | E19: ='Weeks 1-9 (Single Factor)'!F10 -> 150 | F19: ='Weeks 1-9 (Single Factor)'!H10 -> 154 | G19: ='Weeks 1-9 (Single Factor)'!J10 -> 158 | H19: ='Weeks 1-9 (Single Factor)'!L10 -> 161 | I19: ='Weeks 1-9 (Single Factor)'!N10 -> 165 | J19: ='Weeks 1-9 (Single Factor)'!P10 -> 170 | K19: ='Weeks 1-9 (Single Factor)'!R10 -> 174 | L19: ='Weeks 1-9 (Single Factor)'!T10 -> 178 | N19: =IF(D19>($H$6*D$11),D19,0) -> 0 | O19: 0 | P19: 0 | Q19: 0 | R19: 0 | S19: 0 | T19: 0 | U19: 0 | V19: 0
C20: ='Weeks 1-9 (Single Factor)'!C11 -> 5 | D20: ='Weeks 1-9 (Single Factor)'!D11 -> 182 | E20: ='Weeks 1-9 (Single Factor)'!F11 -> 187 | F20: ='Weeks 1-9 (Single Factor)'!H11 -> 192 | G20: ='Weeks 1-9 (Single Factor)'!J11 -> 197 | H20: ='Weeks 1-9 (Single Factor)'!L11 -> 202 | I20: ='Weeks 1-9 (Single Factor)'!N11 -> 207 | J20: ='Weeks 1-9 (Single Factor)'!P11 -> 212 | K20: ='Weeks 1-9 (Single Factor)'!R11 -> 217 | L20: ='Weeks 1-9 (Single Factor)'!T11 -> 223 | N20: 0 | O20: 0 | P20: 0 | Q20: 0 | R20: 0 | S20: 0 | T20: 0 | U20: 0 | V20: 0
C21: ='Weeks 1-9 (Single Factor)'!C12 -> 5 | D21: ='Weeks 1-9 (Single Factor)'!D12 -> 219 | E21: ='Weeks 1-9 (Single Factor)'!F12 -> 225 | F21: ='Weeks 1-9 (Single Factor)'!H12 -> 230 | G21: ='Weeks 1-9 (Single Factor)'!J12 -> 236 | H21: ='Weeks 1-9 (Single Factor)'!L12 -> 242 | I21: ='Weeks 1-9 (Single Factor)'!N12 -> 248 | J21: ='Weeks 1-9 (Single Factor)'!P12 -> 254 | K21: ='Weeks 1-9 (Single Factor)'!R12 -> 261 | L21: ='Weeks 1-9 (Single Factor)'!T12 -> 267 | N21: 219 | O21: 225 | P21: 230 | Q21: 236 | R21: 242 | S21: 248 | T21: 254 | U21: 261 | V21: 267
C22: ='Weeks 1-9 (Single Factor)'!C13 -> 5 | D22: ='Weeks 1-9 (Single Factor)'!D13 -> 255 | E22: ='Weeks 1-9 (Single Factor)'!F13 -> 262 | F22: ='Weeks 1-9 (Single Factor)'!H13 -> 269 | G22: ='Weeks 1-9 (Single Factor)'!J13 -> 276 | H22: ='Weeks 1-9 (Single Factor)'!L13 -> 283 | I22: ='Weeks 1-9 (Single Factor)'!N13 -> 290 | J22: ='Weeks 1-9 (Single Factor)'!P13 -> 297 | K22: ='Weeks 1-9 (Single Factor)'!R13 -> 304 | L22: ='Weeks 1-9 (Single Factor)'!T13 -> 312 | N22: 255 | O22: 262 | P22: 269 | Q22: 276 | R22: 283 | S22: 290 | T22: 297 | U22: 304 | V22: 312
C23: ='Weeks 1-9 (Single Factor)'!C14 -> 5 | D23: ='Weeks 1-9 (Single Factor)'!D14 -> 292 | E23: ='Weeks 1-9 (Single Factor)'!F14 -> 299 | F23: ='Weeks 1-9 (Single Factor)'!H14 -> 307 | G23: ='Weeks 1-9 (Single Factor)'!J14 -> 315 | H23: ='Weeks 1-9 (Single Factor)'!L14 -> 323 | I23: ='Weeks 1-9 (Single Factor)'!N14 -> 331 | J23: ='Weeks 1-9 (Single Factor)'!P14 -> 339 | K23: ='Weeks 1-9 (Single Factor)'!R14 -> 348 | L23: ='Weeks 1-9 (Single Factor)'!T14 -> 356 | N23: 292 | O23: 299 | P23: 307 | Q23: 315 | R23: 323 | S23: 331 | T23: 339 | U23: 348 | V23: 356
B24: ='Weeks 1-9 (Single Factor)'!B15 -> Bench | C24: ='Weeks 1-9 (Single Factor)'!C15 -> 5 | D24: ='Weeks 1-9 (Single Factor)'!D15 -> 104 | E24: ='Weeks 1-9 (Single Factor)'!F15 -> 107 | F24: ='Weeks 1-9 (Single Factor)'!H15 -> 110 | G24: ='Weeks 1-9 (Single Factor)'!J15 -> 113 | H24: ='Weeks 1-9 (Single Factor)'!L15 -> 115 | I24: ='Weeks 1-9 (Single Factor)'!N15 -> 118 | J24: ='Weeks 1-9 (Single Factor)'!P15 -> 121 | K24: ='Weeks 1-9 (Single Factor)'!R15 -> 124 | L24: ='Weeks 1-9 (Single Factor)'!T15 -> 127 | N24: =IF(D24>($H$6*D$12),D24,0) -> 0 | O24: 0 | P24: 0 | Q24: 0 | R24: 0 | S24: 0 | T24: 0 | U24: 0 | V24: 0
C25: ='Weeks 1-9 (Single Factor)'!C16 -> 5 | D25: ='Weeks 1-9 (Single Factor)'!D16 -> 130 | E25: ='Weeks 1-9 (Single Factor)'!F16 -> 134 | F25: ='Weeks 1-9 (Single Factor)'!H16 -> 137 | G25: ='Weeks 1-9 (Single Factor)'!J16 -> 141 | H25: ='Weeks 1-9 (Single Factor)'!L16 -> 144 | I25: ='Weeks 1-9 (Single Factor)'!N16 -> 148 | J25: ='Weeks 1-9 (Single Factor)'!P16 -> 151 | K25: ='Weeks 1-9 (Single Factor)'!R16 -> 155 | L25: ='Weeks 1-9 (Single Factor)'!T16 -> 159 | N25: 0 | O25: 0 | P25: 0 | Q25: 0 | R25: 0 | S25: 0 | T25: 0 | U25: 0 | V25: 0
C26: ='Weeks 1-9 (Single Factor)'!C17 -> 5 | D26: ='Weeks 1-9 (Single Factor)'!D17 -> 156 | E26: ='Weeks 1-9 (Single Factor)'!F17 -> 160 | F26: ='Weeks 1-9 (Single Factor)'!H17 -> 165 | G26: ='Weeks 1-9 (Single Factor)'!J17 -> 169 | H26: ='Weeks 1-9 (Single Factor)'!L17 -> 173 | I26: ='Weeks 1-9 (Single Factor)'!N17 -> 177 | J26: ='Weeks 1-9 (Single Factor)'!P17 -> 182 | K26: ='Weeks 1-9 (Single Factor)'!R17 -> 186 | L26: ='Weeks 1-9 (Single Factor)'!T17 -> 191 | N26: 156 | O26: 160 | P26: 165 | Q26: 169 | R26: 173 | S26: 177 | T26: 182 | U26: 186 | V26: 191
C27: ='Weeks 1-9 (Single Factor)'!C18 -> 5 | D27: ='Weeks 1-9 (Single Factor)'!D18 -> 182 | E27: ='Weeks 1-9 (Single Factor)'!F18 -> 187 | F27: ='Weeks 1-9 (Single Factor)'!H18 -> 192 | G27: ='Weeks 1-9 (Single Factor)'!J18 -> 197 | H27: ='Weeks 1-9 (Single Factor)'!L18 -> 202 | I27: ='Weeks 1-9 (Single Factor)'!N18 -> 207 | J27: ='Weeks 1-9 (Single Factor)'!P18 -> 212 | K27: ='Weeks 1-9 (Single Factor)'!R18 -> 217 | L27: ='Weeks 1-9 (Single Factor)'!T18 -> 223 | N27: 182 | O27: 187 | P27: 192 | Q27: 197 | R27: 202 | S27: 207 | T27: 212 | U27: 217 | V27: 223
C28: ='Weeks 1-9 (Single Factor)'!C19 -> 5 | D28: ='Weeks 1-9 (Single Factor)'!D19 -> 209 | E28: ='Weeks 1-9 (Single Factor)'!F19 -> 214 | F28: ='Weeks 1-9 (Single Factor)'!H19 -> 219 | G28: ='Weeks 1-9 (Single Factor)'!J19 -> 225 | H28: ='Weeks 1-9 (Single Factor)'!L19 -> 231 | I28: ='Weeks 1-9 (Single Factor)'!N19 -> 236 | J28: ='Weeks 1-9 (Single Factor)'!P19 -> 242 | K28: ='Weeks 1-9 (Single Factor)'!R19 -> 248 | L28: ='Weeks 1-9 (Single Factor)'!T19 -> 255 | N28: 209 | O28: 214 | P28: 219 | Q28: 225 | R28: 231 | S28: 236 | T28: 242 | U28: 248 | V28: 255
B29: ='Weeks 1-9 (Single Factor)'!B20 -> Bent Rows | C29: ='Weeks 1-9 (Single Factor)'!C20 -> 5 | D29: ='Weeks 1-9 (Single Factor)'!D20 -> 95 | E29: ='Weeks 1-9 (Single Factor)'!F20 -> 97 | F29: ='Weeks 1-9 (Single Factor)'!H20 -> 100 | G29: ='Weeks 1-9 (Single Factor)'!J20 -> 103 | H29: ='Weeks 1-9 (Single Factor)'!L20 -> 105 | I29: ='Weeks 1-9 (Single Factor)'!N20 -> 108 | J29: ='Weeks 1-9 (Single Factor)'!P20 -> 110 | K29: ='Weeks 1-9 (Single Factor)'!R20 -> 113 | L29: ='Weeks 1-9 (Single Factor)'!T20 -> 116 | N29: =IF(D29>($H$6*D$13),D29,0) -> 0 | O29: 0 | P29: 0 | Q29: 0 | R29: 0 | S29: 0 | T29: 0 | U29: 0 | V29: 0
C30: ='Weeks 1-9 (Single Factor)'!C21 -> 5 | D30: ='Weeks 1-9 (Single Factor)'!D21 -> 119 | E30: ='Weeks 1-9 (Single Factor)'!F21 -> 122 | F30: ='Weeks 1-9 (Single Factor)'!H21 -> 125 | G30: ='Weeks 1-9 (Single Factor)'!J21 -> 128 | H30: ='Weeks 1-9 (Single Factor)'!L21 -> 131 | I30: ='Weeks 1-9 (Single Factor)'!N21 -> 135 | J30: ='Weeks 1-9 (Single Factor)'!P21 -> 138 | K30: ='Weeks 1-9 (Single Factor)'!R21 -> 141 | L30: ='Weeks 1-9 (Single Factor)'!T21 -> 145 | N30: 0 | O30: 0 | P30: 0 | Q30: 0 | R30: 0 | S30: 0 | T30: 0 | U30: 0 | V30: 0
C31: ='Weeks 1-9 (Single Factor)'!C22 -> 5 | D31: ='Weeks 1-9 (Single Factor)'!D22 -> 143 | E31: ='Weeks 1-9 (Single Factor)'!F22 -> 146 | F31: ='Weeks 1-9 (Single Factor)'!H22 -> 150 | G31: ='Weeks 1-9 (Single Factor)'!J22 -> 154 | H31: ='Weeks 1-9 (Single Factor)'!L22 -> 158 | I31: ='Weeks 1-9 (Single Factor)'!N22 -> 162 | J31: ='Weeks 1-9 (Single Factor)'!P22 -> 166 | K31: ='Weeks 1-9 (Single Factor)'!R22 -> 170 | L31: ='Weeks 1-9 (Single Factor)'!T22 -> 174 | N31: 143 | O31: 146 | P31: 150 | Q31: 154 | R31: 158 | S31: 162 | T31: 166 | U31: 170 | V31: 174
C32: ='Weeks 1-9 (Single Factor)'!C23 -> 5 | D32: ='Weeks 1-9 (Single Factor)'!D23 -> 166 | E32: ='Weeks 1-9 (Single Factor)'!F23 -> 171 | F32: ='Weeks 1-9 (Single Factor)'!H23 -> 175 | G32: ='Weeks 1-9 (Single Factor)'!J23 -> 179 | H32: ='Weeks 1-9 (Single Factor)'!L23 -> 184 | I32: ='Weeks 1-9 (Single Factor)'!N23 -> 188 | J32: ='Weeks 1-9 (Single Factor)'!P23 -> 193 | K32: ='Weeks 1-9 (Single Factor)'!R23 -> 198 | L32: ='Weeks 1-9 (Single Factor)'!T23 -> 203 | N32: 166 | O32: 171 | P32: 175 | Q32: 179 | R32: 184 | S32: 188 | T32: 193 | U32: 198 | V32: 203
C33: ='Weeks 1-9 (Single Factor)'!C24 -> 5 | D33: ='Weeks 1-9 (Single Factor)'!D24 -> 190 | E33: ='Weeks 1-9 (Single Factor)'!F24 -> 195 | F33: ='Weeks 1-9 (Single Factor)'!H24 -> 200 | G33: ='Weeks 1-9 (Single Factor)'!J24 -> 205 | H33: ='Weeks 1-9 (Single Factor)'!L24 -> 210 | I33: ='Weeks 1-9 (Single Factor)'!N24 -> 215 | J33: ='Weeks 1-9 (Single Factor)'!P24 -> 221 | K33: ='Weeks 1-9 (Single Factor)'!R24 -> 226 | L33: ='Weeks 1-9 (Single Factor)'!T24 -> 232 | N33: 190 | O33: 195 | P33: 200 | Q33: 205 | R33: 210 | S33: 215 | T33: 221 | U33: 226 | V33: 232
A36: ='Weeks 1-9 (Single Factor)'!A28 -> Wednesday | B36: ='Weeks 1-9 (Single Factor)'!B28 -> Squat | C36: ='Weeks 1-9 (Single Factor)'!C28 -> 5 | D36: ='Weeks 1-9 (Single Factor)'!D28 -> 146 | E36: ='Weeks 1-9 (Single Factor)'!F28 -> 150 | F36: ='Weeks 1-9 (Single Factor)'!H28 -> 154 | G36: ='Weeks 1-9 (Single Factor)'!J28 -> 158 | H36: ='Weeks 1-9 (Single Factor)'!L28 -> 161 | I36: ='Weeks 1-9 (Single Factor)'!N28 -> 165 | J36: ='Weeks 1-9 (Single Factor)'!P28 -> 170 | K36: ='Weeks 1-9 (Single Factor)'!R28 -> 174 | L36: ='Weeks 1-9 (Single Factor)'!T28 -> 178 | N36: =IF(D36>($H$6*D$11),D36,0) -> 0 | O36: 0 | P36: 0 | Q36: 0 | R36: 0 | S36: 0 | T36: 0 | U36: 0 | V36: 0
C37: ='Weeks 1-9 (Single Factor)'!C29 -> 5 | D37: ='Weeks 1-9 (Single Factor)'!D29 -> 182 | E37: ='Weeks 1-9 (Single Factor)'!F29 -> 187 | F37: ='Weeks 1-9 (Single Factor)'!H29 -> 192 | G37: ='Weeks 1-9 (Single Factor)'!J29 -> 197 | H37: ='Weeks 1-9 (Single Factor)'!L29 -> 202 | I37: ='Weeks 1-9 (Single Factor)'!N29 -> 207 | J37: ='Weeks 1-9 (Single Factor)'!P29 -> 212 | K37: ='Weeks 1-9 (Single Factor)'!R29 -> 217 | L37: ='Weeks 1-9 (Single Factor)'!T29 -> 223 | N37: 0 | O37: 0 | P37: 0 | Q37: 0 | R37: 0 | S37: 0 | T37: 0 | U37: 0 | V37: 0
C38: ='Weeks 1-9 (Single Factor)'!C30 -> 5 | D38: ='Weeks 1-9 (Single Factor)'!D30 -> 219 | E38: ='Weeks 1-9 (Single Factor)'!F30 -> 225 | F38: ='Weeks 1-9 (Single Factor)'!H30 -> 230 | G38: ='Weeks 1-9 (Single Factor)'!J30 -> 236 | H38: ='Weeks 1-9 (Single Factor)'!L30 -> 242 | I38: ='Weeks 1-9 (Single Factor)'!N30 -> 248 | J38: ='Weeks 1-9 (Single Factor)'!P30 -> 254 | K38: ='Weeks 1-9 (Single Factor)'!R30 -> 261 | L38: ='Weeks 1-9 (Single Factor)'!T30 -> 267 | N38: 219 | O38: 225 | P38: 230 | Q38: 236 | R38: 242 | S38: 248 | T38: 254 | U38: 261 | V38: 267
C39: ='Weeks 1-9 (Single Factor)'!C31 -> 5 | D39: ='Weeks 1-9 (Single Factor)'!D31 -> 219 | E39: ='Weeks 1-9 (Single Factor)'!F31 -> 225 | F39: ='Weeks 1-9 (Single Factor)'!H31 -> 230 | G39: ='Weeks 1-9 (Single Factor)'!J31 -> 236 | H39: ='Weeks 1-9 (Single Factor)'!L31 -> 242 | I39: ='Weeks 1-9 (Single Factor)'!N31 -> 248 | J39: ='Weeks 1-9 (Single Factor)'!P31 -> 254 | K39: ='Weeks 1-9 (Single Factor)'!R31 -> 261 | L39: ='Weeks 1-9 (Single Factor)'!T31 -> 267 | N39: 219 | O39: 225 | P39: 230 | Q39: 236 | R39: 242 | S39: 248 | T39: 254 | U39: 261 | V39: 267
B40: ='Weeks 1-9 (Single Factor)'!B32 -> Incline Bench | C40: ='Weeks 1-9 (Single Factor)'!C32 -> 5 | D40: ='Weeks 1-9 (Single Factor)'!D32 -> 107 | E40: ='Weeks 1-9 (Single Factor)'!F32 -> 110 | F40: ='Weeks 1-9 (Single Factor)'!H32 -> 113 | G40: ='Weeks 1-9 (Single Factor)'!J32 -> 116 | H40: ='Weeks 1-9 (Single Factor)'!L32 -> 119 | I40: ='Weeks 1-9 (Single Factor)'!N32 -> 121 | J40: ='Weeks 1-9 (Single Factor)'!P32 -> 125 | K40: ='Weeks 1-9 (Single Factor)'!R32 -> 128 | L40: ='Weeks 1-9 (Single Factor)'!T32 -> 131 | N40: =IF(D40>($H$6*D$14),D40,0) -> 0 | O40: 0 | P40: 0 | Q40: 0 | R40: 0 | S40: 0 | T40: 0 | U40: 0 | V40: 0
C41: ='Weeks 1-9 (Single Factor)'!C33 -> 5 | D41: ='Weeks 1-9 (Single Factor)'!D33 -> 129 | E41: ='Weeks 1-9 (Single Factor)'!F33 -> 132 | F41: ='Weeks 1-9 (Single Factor)'!H33 -> 135 | G41: ='Weeks 1-9 (Single Factor)'!J33 -> 139 | H41: ='Weeks 1-9 (Single Factor)'!L33 -> 142 | I41: ='Weeks 1-9 (Single Factor)'!N33 -> 146 | J41: ='Weeks 1-9 (Single Factor)'!P33 -> 149 | K41: ='Weeks 1-9 (Single Factor)'!R33 -> 153 | L41: ='Weeks 1-9 (Single Factor)'!T33 -> 157 | N41: 129 | O41: 132 | P41: 135 | Q41: 139 | R41: 142 | S41: 146 | T41: 149 | U41: 153 | V41: 157
C42: ='Weeks 1-9 (Single Factor)'!C34 -> 5 | D42: ='Weeks 1-9 (Single Factor)'!D34 -> 150 | E42: ='Weeks 1-9 (Single Factor)'!F34 -> 154 | F42: ='Weeks 1-9 (Single Factor)'!H34 -> 158 | G42: ='Weeks 1-9 (Single Factor)'!J34 -> 162 | H42: ='Weeks 1-9 (Single Factor)'!L34 -> 166 | I42: ='Weeks 1-9 (Single Factor)'!N34 -> 170 | J42: ='Weeks 1-9 (Single Factor)'!P34 -> 174 | K42: ='Weeks 1-9 (Single Factor)'!R34 -> 179 | L42: ='Weeks 1-9 (Single Factor)'!T34 -> 183 | N42: 150 | O42: 154 | P42: 158 | Q42: 162 | R42: 166 | S42: 170 | T42: 174 | U42: 179 | V42: 183
C43: ='Weeks 1-9 (Single Factor)'!C35 -> 5 | D43: ='Weeks 1-9 (Single Factor)'!D35 -> 171 | E43: ='Weeks 1-9 (Single Factor)'!F35 -> 176 | F43: ='Weeks 1-9 (Single Factor)'!H35 -> 180 | G43: ='Weeks 1-9 (Single Factor)'!J35 -> 185 | H43: ='Weeks 1-9 (Single Factor)'!L35 -> 190 | I43: ='Weeks 1-9 (Single Factor)'!N35 -> 194 | J43: ='Weeks 1-9 (Single Factor)'!P35 -> 199 | K43: ='Weeks 1-9 (Single Factor)'!R35 -> 204 | L43: ='Weeks 1-9 (Single Factor)'!T35 -> 209 | N43: 171 | O43: 176 | P43: 180 | Q43: 185 | R43: 190 | S43: 194 | T43: 199 | U43: 204 | V43: 209
B44: ='Weeks 1-9 (Single Factor)'!B36 -> Deadlift | C44: ='Weeks 1-9 (Single Factor)'!C36 -> 5 | D44: ='Weeks 1-9 (Single Factor)'!D36 -> 182 | E44: ='Weeks 1-9 (Single Factor)'!F36 -> 187 | F44: ='Weeks 1-9 (Single Factor)'!H36 -> 192 | G44: ='Weeks 1-9 (Single Factor)'!J36 -> 197 | H44: ='Weeks 1-9 (Single Factor)'!L36 -> 202 | I44: ='Weeks 1-9 (Single Factor)'!N36 -> 207 | J44: ='Weeks 1-9 (Single Factor)'!P36 -> 212 | K44: ='Weeks 1-9 (Single Factor)'!R36 -> 217 | L44: ='Weeks 1-9 (Single Factor)'!T36 -> 223 | N44: =IF(D44>($H$6*D$15),D44,0) -> 0 | O44: 0 | P44: 0 | Q44: 0 | R44: 0 | S44: 0 | T44: 0 | U44: 0 | V44: 0
C45: ='Weeks 1-9 (Single Factor)'!C37 -> 5 | D45: ='Weeks 1-9 (Single Factor)'!D37 -> 219 | E45: ='Weeks 1-9 (Single Factor)'!F37 -> 225 | F45: ='Weeks 1-9 (Single Factor)'!H37 -> 230 | G45: ='Weeks 1-9 (Single Factor)'!J37 -> 236 | H45: ='Weeks 1-9 (Single Factor)'!L37 -> 242 | I45: ='Weeks 1-9 (Single Factor)'!N37 -> 248 | J45: ='Weeks 1-9 (Single Factor)'!P37 -> 254 | K45: ='Weeks 1-9 (Single Factor)'!R37 -> 261 | L45: ='Weeks 1-9 (Single Factor)'!T37 -> 267 | N45: 219 | O45: 225 | P45: 230 | Q45: 236 | R45: 242 | S45: 248 | T45: 254 | U45: 261 | V45: 267
C46: ='Weeks 1-9 (Single Factor)'!C38 -> 5 | D46: ='Weeks 1-9 (Single Factor)'!D38 -> 255 | E46: ='Weeks 1-9 (Single Factor)'!F38 -> 262 | F46: ='Weeks 1-9 (Single Factor)'!H38 -> 269 | G46: ='Weeks 1-9 (Single Factor)'!J38 -> 276 | H46: ='Weeks 1-9 (Single Factor)'!L38 -> 283 | I46: ='Weeks 1-9 (Single Factor)'!N38 -> 290 | J46: ='Weeks 1-9 (Single Factor)'!P38 -> 297 | K46: ='Weeks 1-9 (Single Factor)'!R38 -> 304 | L46: ='Weeks 1-9 (Single Factor)'!T38 -> 312 | N46: 255 | O46: 262 | P46: 269 | Q46: 276 | R46: 283 | S46: 290 | T46: 297 | U46: 304 | V46: 312
C47: ='Weeks 1-9 (Single Factor)'!C39 -> 5 | D47: ='Weeks 1-9 (Single Factor)'!D39 -> 292 | E47: ='Weeks 1-9 (Single Factor)'!F39 -> 299 | F47: ='Weeks 1-9 (Single Factor)'!H39 -> 307 | G47: ='Weeks 1-9 (Single Factor)'!J39 -> 315 | H47: ='Weeks 1-9 (Single Factor)'!L39 -> 323 | I47: ='Weeks 1-9 (Single Factor)'!N39 -> 331 | J47: ='Weeks 1-9 (Single Factor)'!P39 -> 339 | K47: ='Weeks 1-9 (Single Factor)'!R39 -> 348 | L47: ='Weeks 1-9 (Single Factor)'!T39 -> 356 | N47: 292 | O47: 299 | P47: 307 | Q47: 315 | R47: 323 | S47: 331 | T47: 339 | U47: 348 | V47: 356
A50: ='Weeks 1-9 (Single Factor)'!A43 -> Friday | B50: ='Weeks 1-9 (Single Factor)'!B43 -> Squat | C50: ='Weeks 1-9 (Single Factor)'!C43 -> 5 | D50: ='Weeks 1-9 (Single Factor)'!D43 -> 146 | E50: ='Weeks 1-9 (Single Factor)'!F43 -> 150 | F50: ='Weeks 1-9 (Single Factor)'!H43 -> 154 | G50: ='Weeks 1-9 (Single Factor)'!J43 -> 158 | H50: ='Weeks 1-9 (Single Factor)'!L43 -> 161 | I50: ='Weeks 1-9 (Single Factor)'!N43 -> 165 | J50: ='Weeks 1-9 (Single Factor)'!P43 -> 170 | K50: ='Weeks 1-9 (Single Factor)'!R43 -> 174 | L50: ='Weeks 1-9 (Single Factor)'!T43 -> 178 | N50: =IF(D50>($H$6*D$11),D50,0) -> 0 | O50: 0 | P50: 0 | Q50: 0 | R50: 0 | S50: 0 | T50: 0 | U50: 0 | V50: 0
C51: ='Weeks 1-9 (Single Factor)'!C44 -> 5 | D51: ='Weeks 1-9 (Single Factor)'!D44 -> 182 | E51: ='Weeks 1-9 (Single Factor)'!F44 -> 187 | F51: ='Weeks 1-9 (Single Factor)'!H44 -> 192 | G51: ='Weeks 1-9 (Single Factor)'!J44 -> 197 | H51: ='Weeks 1-9 (Single Factor)'!L44 -> 202 | I51: ='Weeks 1-9 (Single Factor)'!N44 -> 207 | J51: ='Weeks 1-9 (Single Factor)'!P44 -> 212 | K51: ='Weeks 1-9 (Single Factor)'!R44 -> 217 | L51: ='Weeks 1-9 (Single Factor)'!T44 -> 223 | N51: 0 | O51: 0 | P51: 0 | Q51: 0 | R51: 0 | S51: 0 | T51: 0 | U51: 0 | V51: 0
C52: ='Weeks 1-9 (Single Factor)'!C45 -> 5 | D52: ='Weeks 1-9 (Single Factor)'!D45 -> 219 | E52: ='Weeks 1-9 (Single Factor)'!F45 -> 225 | F52: ='Weeks 1-9 (Single Factor)'!H45 -> 230 | G52: ='Weeks 1-9 (Single Factor)'!J45 -> 236 | H52: ='Weeks 1-9 (Single Factor)'!L45 -> 242 | I52: ='Weeks 1-9 (Single Factor)'!N45 -> 248 | J52: ='Weeks 1-9 (Single Factor)'!P45 -> 254 | K52: ='Weeks 1-9 (Single Factor)'!R45 -> 261 | L52: ='Weeks 1-9 (Single Factor)'!T45 -> 267 | N52: 219 | O52: 225 | P52: 230 | Q52: 236 | R52: 242 | S52: 248 | T52: 254 | U52: 261 | V52: 267
C53: ='Weeks 1-9 (Single Factor)'!C46 -> 5 | D53: ='Weeks 1-9 (Single Factor)'!D46 -> 255 | E53: ='Weeks 1-9 (Single Factor)'!F46 -> 262 | F53: ='Weeks 1-9 (Single Factor)'!H46 -> 269 | G53: ='Weeks 1-9 (Single Factor)'!J46 -> 276 | H53: ='Weeks 1-9 (Single Factor)'!L46 -> 283 | I53: ='Weeks 1-9 (Single Factor)'!N46 -> 290 | J53: ='Weeks 1-9 (Single Factor)'!P46 -> 297 | K53: ='Weeks 1-9 (Single Factor)'!R46 -> 304 | L53: ='Weeks 1-9 (Single Factor)'!T46 -> 312 | N53: 255 | O53: 262 | P53: 269 | Q53: 276 | R53: 283 | S53: 290 | T53: 297 | U53: 304 | V53: 312
C54: ='Weeks 1-9 (Single Factor)'!C47 -> 3 | D54: ='Weeks 1-9 (Single Factor)'!D47 -> 299 | E54: ='Weeks 1-9 (Single Factor)'!F47 -> 307 | F54: ='Weeks 1-9 (Single Factor)'!H47 -> 315 | G54: ='Weeks 1-9 (Single Factor)'!J47 -> 323 | H54: ='Weeks 1-9 (Single Factor)'!L47 -> 331 | I54: ='Weeks 1-9 (Single Factor)'!N47 -> 339 | J54: ='Weeks 1-9 (Single Factor)'!P47 -> 348 | K54: ='Weeks 1-9 (Single Factor)'!R47 -> 356 | L54: ='Weeks 1-9 (Single Factor)'!T47 -> 365 | N54: 299 | O54: 307 | P54: 315 | Q54: 323 | R54: 331 | S54: 339 | T54: 348 | U54: 356 | V54: 365
C55: ='Weeks 1-9 (Single Factor)'!C48 -> 8 | D55: ='Weeks 1-9 (Single Factor)'!D48 -> 219 | E55: ='Weeks 1-9 (Single Factor)'!F48 -> 225 | F55: ='Weeks 1-9 (Single Factor)'!H48 -> 230 | G55: ='Weeks 1-9 (Single Factor)'!J48 -> 236 | H55: ='Weeks 1-9 (Single Factor)'!L48 -> 242 | I55: ='Weeks 1-9 (Single Factor)'!N48 -> 248 | J55: ='Weeks 1-9 (Single Factor)'!P48 -> 254 | K55: ='Weeks 1-9 (Single Factor)'!R48 -> 261 | L55: ='Weeks 1-9 (Single Factor)'!T48 -> 267 | N55: 219 | O55: 225 | P55: 230 | Q55: 236 | R55: 242 | S55: 248 | T55: 254 | U55: 261 | V55: 267
B56: ='Weeks 1-9 (Single Factor)'!B49 -> Bench | C56: ='Weeks 1-9 (Single Factor)'!C49 -> 5 | D56: ='Weeks 1-9 (Single Factor)'!D49 -> 104 | E56: ='Weeks 1-9 (Single Factor)'!F49 -> 107 | F56: ='Weeks 1-9 (Single Factor)'!H49 -> 110 | G56: ='Weeks 1-9 (Single Factor)'!J49 -> 113 | H56: ='Weeks 1-9 (Single Factor)'!L49 -> 115 | I56: ='Weeks 1-9 (Single Factor)'!N49 -> 118 | J56: ='Weeks 1-9 (Single Factor)'!P49 -> 121 | K56: ='Weeks 1-9 (Single Factor)'!R49 -> 124 | L56: ='Weeks 1-9 (Single Factor)'!T49 -> 127 | N56: =IF(D56>($H$6*D$12),D56,0) -> 0 | O56: 0 | P56: 0 | Q56: 0 | R56: 0 | S56: 0 | T56: 0 | U56: 0 | V56: 0
C57: ='Weeks 1-9 (Single Factor)'!C50 -> 5 | D57: ='Weeks 1-9 (Single Factor)'!D50 -> 130 | E57: ='Weeks 1-9 (Single Factor)'!F50 -> 134 | F57: ='Weeks 1-9 (Single Factor)'!H50 -> 137 | G57: ='Weeks 1-9 (Single Factor)'!J50 -> 141 | H57: ='Weeks 1-9 (Single Factor)'!L50 -> 144 | I57: ='Weeks 1-9 (Single Factor)'!N50 -> 148 | J57: ='Weeks 1-9 (Single Factor)'!P50 -> 151 | K57: ='Weeks 1-9 (Single Factor)'!R50 -> 155 | L57: ='Weeks 1-9 (Single Factor)'!T50 -> 159 | N57: 0 | O57: 0 | P57: 0 | Q57: 0 | R57: 0 | S57: 0 | T57: 0 | U57: 0 | V57: 0
C58: ='Weeks 1-9 (Single Factor)'!C51 -> 5 | D58: ='Weeks 1-9 (Single Factor)'!D51 -> 156 | E58: ='Weeks 1-9 (Single Factor)'!F51 -> 160 | F58: ='Weeks 1-9 (Single Factor)'!H51 -> 165 | G58: ='Weeks 1-9 (Single Factor)'!J51 -> 169 | H58: ='Weeks 1-9 (Single Factor)'!L51 -> 173 | I58: ='Weeks 1-9 (Single Factor)'!N51 -> 177 | J58: ='Weeks 1-9 (Single Factor)'!P51 -> 182 | K58: ='Weeks 1-9 (Single Factor)'!R51 -> 186 | L58: ='Weeks 1-9 (Single Factor)'!T51 -> 191 | N58: 156 | O58: 160 | P58: 165 | Q58: 169 | R58: 173 | S58: 177 | T58: 182 | U58: 186 | V58: 191
C59: ='Weeks 1-9 (Single Factor)'!C52 -> 5 | D59: ='Weeks 1-9 (Single Factor)'!D52 -> 182 | E59: ='Weeks 1-9 (Single Factor)'!F52 -> 187 | F59: ='Weeks 1-9 (Single Factor)'!H52 -> 192 | G59: ='Weeks 1-9 (Single Factor)'!J52 -> 197 | H59: ='Weeks 1-9 (Single Factor)'!L52 -> 202 | I59: ='Weeks 1-9 (Single Factor)'!N52 -> 207 | J59: ='Weeks 1-9 (Single Factor)'!P52 -> 212 | K59: ='Weeks 1-9 (Single Factor)'!R52 -> 217 | L59: ='Weeks 1-9 (Single Factor)'!T52 -> 223 | N59: 182 | O59: 187 | P59: 192 | Q59: 197 | R59: 202 | S59: 207 | T59: 212 | U59: 217 | V59: 223
C60: ='Weeks 1-9 (Single Factor)'!C53 -> 3 | D60: ='Weeks 1-9 (Single Factor)'!D53 -> 214 | E60: ='Weeks 1-9 (Single Factor)'!F53 -> 219 | F60: ='Weeks 1-9 (Single Factor)'!H53 -> 225 | G60: ='Weeks 1-9 (Single Factor)'!J53 -> 231 | H60: ='Weeks 1-9 (Single Factor)'!L53 -> 236 | I60: ='Weeks 1-9 (Single Factor)'!N53 -> 242 | J60: ='Weeks 1-9 (Single Factor)'!P53 -> 248 | K60: ='Weeks 1-9 (Single Factor)'!R53 -> 255 | L60: ='Weeks 1-9 (Single Factor)'!T53 -> 261 | N60: 214 | O60: 219 | P60: 225 | Q60: 231 | R60: 236 | S60: 242 | T60: 248 | U60: 255 | V60: 261
C61: ='Weeks 1-9 (Single Factor)'!C54 -> 8 | D61: ='Weeks 1-9 (Single Factor)'!D54 -> 156 | E61: ='Weeks 1-9 (Single Factor)'!F54 -> 160 | F61: ='Weeks 1-9 (Single Factor)'!H54 -> 165 | G61: ='Weeks 1-9 (Single Factor)'!J54 -> 169 | H61: ='Weeks 1-9 (Single Factor)'!L54 -> 173 | I61: ='Weeks 1-9 (Single Factor)'!N54 -> 177 | J61: ='Weeks 1-9 (Single Factor)'!P54 -> 182 | K61: ='Weeks 1-9 (Single Factor)'!R54 -> 186 | L61: ='Weeks 1-9 (Single Factor)'!T54 -> 191 | N61: 156 | O61: 160 | P61: 165 | Q61: 169 | R61: 173 | S61: 177 | T61: 182 | U61: 186 | V61: 191
B62: ='Weeks 1-9 (Single Factor)'!B55 -> Bent Rows | C62: ='Weeks 1-9 (Single Factor)'!C55 -> 5 | D62: ='Weeks 1-9 (Single Factor)'!D55 -> 95 | E62: ='Weeks 1-9 (Single Factor)'!F55 -> 97 | F62: ='Weeks 1-9 (Single Factor)'!H55 -> 100 | G62: ='Weeks 1-9 (Single Factor)'!J55 -> 103 | H62: ='Weeks 1-9 (Single Factor)'!L55 -> 105 | I62: ='Weeks 1-9 (Single Factor)'!N55 -> 108 | J62: ='Weeks 1-9 (Single Factor)'!P55 -> 110 | K62: ='Weeks 1-9 (Single Factor)'!R55 -> 113 | L62: ='Weeks 1-9 (Single Factor)'!T55 -> 116 | N62: =IF(D62>($H$6*D$13),D62,0) -> 0 | O62: 0 | P62: 0 | Q62: 0 | R62: 0 | S62: 0 | T62: 0 | U62: 0 | V62: 0
C63: ='Weeks 1-9 (Single Factor)'!C56 -> 5 | D63: ='Weeks 1-9 (Single Factor)'!D56 -> 119 | E63: ='Weeks 1-9 (Single Factor)'!F56 -> 122 | F63: ='Weeks 1-9 (Single Factor)'!H56 -> 125 | G63: ='Weeks 1-9 (Single Factor)'!J56 -> 128 | H63: ='Weeks 1-9 (Single Factor)'!L56 -> 131 | I63: ='Weeks 1-9 (Single Factor)'!N56 -> 135 | J63: ='Weeks 1-9 (Single Factor)'!P56 -> 138 | K63: ='Weeks 1-9 (Single Factor)'!R56 -> 141 | L63: ='Weeks 1-9 (Single Factor)'!T56 -> 145 | N63: 0 | O63: 0 | P63: 0 | Q63: 0 | R63: 0 | S63: 0 | T63: 0 | U63: 0 | V63: 0
C64: ='Weeks 1-9 (Single Factor)'!C57 -> 5 | D64: ='Weeks 1-9 (Single Factor)'!D57 -> 143 | E64: ='Weeks 1-9 (Single Factor)'!F57 -> 146 | F64: ='Weeks 1-9 (Single Factor)'!H57 -> 150 | G64: ='Weeks 1-9 (Single Factor)'!J57 -> 154 | H64: ='Weeks 1-9 (Single Factor)'!L57 -> 158 | I64: ='Weeks 1-9 (Single Factor)'!N57 -> 162 | J64: ='Weeks 1-9 (Single Factor)'!P57 -> 166 | K64: ='Weeks 1-9 (Single Factor)'!R57 -> 170 | L64: ='Weeks 1-9 (Single Factor)'!T57 -> 174 | N64: 143 | O64: 146 | P64: 150 | Q64: 154 | R64: 158 | S64: 162 | T64: 166 | U64: 170 | V64: 174
C65: ='Weeks 1-9 (Single Factor)'!C58 -> 5 | D65: ='Weeks 1-9 (Single Factor)'!D58 -> 166 | E65: ='Weeks 1-9 (Single Factor)'!F58 -> 171 | F65: ='Weeks 1-9 (Single Factor)'!H58 -> 175 | G65: ='Weeks 1-9 (Single Factor)'!J58 -> 179 | H65: ='Weeks 1-9 (Single Factor)'!L58 -> 184 | I65: ='Weeks 1-9 (Single Factor)'!N58 -> 188 | J65: ='Weeks 1-9 (Single Factor)'!P58 -> 193 | K65: ='Weeks 1-9 (Single Factor)'!R58 -> 198 | L65: ='Weeks 1-9 (Single Factor)'!T58 -> 203 | N65: 166 | O65: 171 | P65: 175 | Q65: 179 | R65: 184 | S65: 188 | T65: 193 | U65: 198 | V65: 203
C66: ='Weeks 1-9 (Single Factor)'!C59 -> 3 | D66: ='Weeks 1-9 (Single Factor)'!D59 -> 195 | E66: ='Weeks 1-9 (Single Factor)'!F59 -> 200 | F66: ='Weeks 1-9 (Single Factor)'!H59 -> 205 | G66: ='Weeks 1-9 (Single Factor)'!J59 -> 210 | H66: ='Weeks 1-9 (Single Factor)'!L59 -> 215 | I66: ='Weeks 1-9 (Single Factor)'!N59 -> 221 | J66: ='Weeks 1-9 (Single Factor)'!P59 -> 226 | K66: ='Weeks 1-9 (Single Factor)'!R59 -> 232 | L66: ='Weeks 1-9 (Single Factor)'!T59 -> 238 | N66: 195 | O66: 200 | P66: 205 | Q66: 210 | R66: 215 | S66: 221 | T66: 226 | U66: 232 | V66: 238
C67: ='Weeks 1-9 (Single Factor)'!C60 -> 8 | D67: ='Weeks 1-9 (Single Factor)'!D60 -> 143 | E67: ='Weeks 1-9 (Single Factor)'!F60 -> 146 | F67: ='Weeks 1-9 (Single Factor)'!H60 -> 150 | G67: ='Weeks 1-9 (Single Factor)'!J60 -> 154 | H67: ='Weeks 1-9 (Single Factor)'!L60 -> 158 | I67: ='Weeks 1-9 (Single Factor)'!N60 -> 162 | J67: ='Weeks 1-9 (Single Factor)'!P60 -> 166 | K67: ='Weeks 1-9 (Single Factor)'!R60 -> 170 | L67: ='Weeks 1-9 (Single Factor)'!T60 -> 174 | N67: 143 | O67: 146 | P67: 150 | Q67: 154 | R67: 158 | S67: 162 | T67: 166 | U67: 170 | V67: 174
A69: ='Weeks 1-9 (Single Factor)'!A65 -> Core Exercise Tonnage | C69: ='Weeks 1-9 (Single Factor)'!C65 -> Mon | D69: ='Weeks 1-9 (Single Factor)'!D65 -> 12947 | E69: ='Weeks 1-9 (Single Factor)'!F65 -> 13279 | F69: ='Weeks 1-9 (Single Factor)'!H65 -> 13620 | G69: ='Weeks 1-9 (Single Factor)'!J65 -> 13969 | H69: ='Weeks 1-9 (Single Factor)'!L65 -> 14318 | I69: ='Weeks 1-9 (Single Factor)'!N65 -> 14676 | J69: ='Weeks 1-9 (Single Factor)'!P65 -> 15043 | K69: ='Weeks 1-9 (Single Factor)'!R65 -> 15419 | L69: ='Weeks 1-9 (Single Factor)'!T65 -> 15804
A70: ='Weeks 1-9 (Single Factor)'!A66 -> 0 | C70: ='Weeks 1-9 (Single Factor)'!C66 -> Wed | D70: ='Weeks 1-9 (Single Factor)'!D66 -> 11363 | E70: ='Weeks 1-9 (Single Factor)'!F66 -> 11654 | F70: ='Weeks 1-9 (Single Factor)'!H66 -> 11953 | G70: ='Weeks 1-9 (Single Factor)'!J66 -> 12259 | H70: ='Weeks 1-9 (Single Factor)'!L66 -> 12566 | I70: ='Weeks 1-9 (Single Factor)'!N66 -> 12880 | J70: ='Weeks 1-9 (Single Factor)'!P66 -> 13202 | K70: ='Weeks 1-9 (Single Factor)'!R66 -> 13532 | L70: ='Weeks 1-9 (Single Factor)'!T66 -> 13870
C71: ='Weeks 1-9 (Single Factor)'!C67 -> Fri | D71: ='Weeks 1-9 (Single Factor)'!D67 -> 15761 | E71: ='Weeks 1-9 (Single Factor)'!F67 -> 16165 | F71: ='Weeks 1-9 (Single Factor)'!H67 -> 16580 | G71: ='Weeks 1-9 (Single Factor)'!J67 -> 17005 | H71: ='Weeks 1-9 (Single Factor)'!L67 -> 17430 | I71: ='Weeks 1-9 (Single Factor)'!N67 -> 17865 | J71: ='Weeks 1-9 (Single Factor)'!P67 -> 18312 | K71: ='Weeks 1-9 (Single Factor)'!R67 -> 18770 | L71: ='Weeks 1-9 (Single Factor)'!T67 -> 19239
A73: Relevant Tonnage | C73: Monday | D73: =SUMPRODUCT($C$19:$C$33,N19:N33) -> 9063 | E73: 9295 | F73: 9534 | G73: 9778 | H73: 10023 | I73: 10273 | J73: 10530 | K73: 10793 | L73: 11063
C74: Wednesday | D74: =SUMPRODUCT($C$36:$C$47,N36:N47) -> 8272 | E74: 8484 | F74: 8702 | G74: 8925 | H74: 9148 | I74: 9377 | J74: 9611 | K74: 9852 | L74: 10098
C75: Friday | D75: =SUMPRODUCT($C$50:$C$67,N50:N67) -> 11877 | E75: =SUMPRODUCT($C$50:$C$67,O50:O67) -> 12181 | F75: 12494 | G75: 12814 | H75: 13134 | I75: 13463 | J75: 13799 | K75: 14144 | L75: 14498
